bitfinex/quotes_SOLUSD_20240816
["timestamp","ask_amount","ask_price","bid_price","bid_amount"]
[1723770945276,7.0492,141.86,141.83,20.0]
[1723770945477,7.0492,141.86,141.82,7.051]
[1723770945678,7.55173566,141.85,141.81,7.0515]
[1723770945879,7.0497,141.85,141.8,24.6819]
[1723770946385,7.0497,141.85,141.8,44.6819]
[1723770946586,7.0497,141.85,141.8,24.6819]
[1723770946910,7.55173566,141.85,141.8,24.6819]
[1723770947294,7.55173566,141.85,141.8,17.6299]
[1723770947295,7.0503,141.84,141.8,17.6299]
[1723770949190,27.26203566,141.84,141.77,17.6339]
[1723770950292,27.26203566,141.84,141.76,20.0]
[1723770950293,33.1313,141.82,141.76,20.0]
[1723770950501,33.1313,141.82,141.71,44.6974]
[1723770950502,7.0545,141.76,141.71,44.6974]
[1723770950688,7.0541,141.77,141.72,7.0557]
[1723770950898,7.0533,141.78,141.73,7.0555]
[1723770951615,7.0537,141.77,141.73,7.0555]
[1723770951798,7.0535,141.78,141.73,7.0555]
[1723770952420,7.55593566,141.77,141.72,27.056]
[1723770952617,7.55623566,141.76,141.71,24.6974]
[1723770952787,7.0542,141.76,141.71,24.6974]
[1723770953735,7.055,141.75,141.71,17.6409]
[1723770953907,0.50203566,141.74,141.71,17.6409]
[1723770954096,7.055,141.75,141.71,24.6975]
[1723770954298,7.0537,141.77,141.72,27.0559]
[1723770954601,7.0537,141.77,141.73,7.0555]
[1723770955107,7.0537,141.77,141.72,7.056]
[1723770955533,7.0533,141.78,141.74,7.0551]
[1723770956133,7.0528,141.79,141.74,7.0549]
[1723770956429,7.0532,141.78,141.74,7.0549]
[1723770956598,7.0528,141.79,141.74,7.0549]
[1723770956797,22.6922,141.81,141.75,82.88688]
[1723770957001,13.4226,141.82,141.77,24.6872]
[1723770957242,6.3713,141.82,141.77,24.6872]
[1723770957397,15.3351,141.84,141.77,37.6337]
[1723770957604,15.3351,141.84,141.78,0.25098]
[1723770957924,15.3351,141.84,141.79,37.6312]
[1723770958930,15.3351,141.84,141.8,7.0518]
[1723770959140,17.621,141.88,141.81,57.75389]
[1723770959141,15.6405,141.88,141.81,57.75389]
[1723770959607,15.6405,141.88,141.82,0.12549]
[1723770960007,22.6888,141.88,141.83,7.0505]
[1723770960208,15.6405,141.88,141.82,7.051]
[1723770961129,16.14253566,141.88,141.82,7.051]
[1723770961598,15.6405,141.88,141.82,7.051]
[1723770962025,7.0492,141.86,141.82,7.051]
[1723770962433,7.0487,141.87,141.82,7.051]
[1723770962731,22.6888,141.88,141.83,37.6262]
[1723770962895,22.6888,141.88,141.83,24.6767]
[1723770963206,0.50203566,141.87,141.83,24.6767]
[1723770963403,22.6888,141.88,141.83,44.6767]
[1723770964212,7.0483,141.88,141.83,24.6767]
[1723770965029,7.0483,141.88,141.84,7.0501]
[1723770966311,7.0483,141.88,141.83,24.6767]
[1723770970031,7.0493,141.86,141.8,37.6297]
[1723770970214,7.0493,141.86,141.82,7.0511]
[1723770970408,0.12549,141.88,141.82,7.051]
[1723770970603,7.0498,141.85,141.81,7.0516]
[1723770970803,0.25098,141.88,141.8,17.6297]
[1723770970804,33.44,141.87,141.8,17.6297]
[1723770971009,0.12549,141.84,141.77,17.6334]
[1723770971235,33.44,141.83,141.76,7.054]
[1723770971436,0.12549,141.82,141.76,7.054]
[1723770971803,7.0525,141.8,141.76,7.054]
[1723770972016,33.44,141.83,141.76,7.054]
[1723770972017,7.0518,141.81,141.76,7.054]
[1723770972533,7.0513,141.82,141.78,20.0]
[1723770972739,51.0645,141.85,141.79,7.0526]
[1723770972740,7.0507,141.83,141.79,7.0526]
[1723770973233,7.0507,141.83,141.78,7.053]
[1723770973407,7.0512,141.82,141.78,7.053]
[1723770973811,7.0517,141.81,141.77,7.0536]
[1723770975535,7.0513,141.82,141.77,7.0536]
[1723770976533,7.0516,141.81,141.76,24.6881]
[1723770977453,7.0516,141.81,141.77,7.0535]
[1723770977752,0.25098,141.8,141.73,17.6382]
[1723770977923,33.44,141.79,141.73,17.6382]
[1723770978127,7.0532,141.78,141.73,37.6382]
[1723770978352,7.0532,141.78,141.74,7.055]
[1723770978555,7.0532,141.78,141.73,24.6937]
[1723770979053,7.0536,141.77,141.73,24.6937]
[1723770979259,33.44,141.79,141.71,35.6127]
[1723770979419,33.44,141.77,141.71,20.0]
[1723770979628,7.0548,141.75,141.71,27.0565]
[1723770979820,7.0542,141.76,141.71,27.0565]
[1723770980047,7.55623566,141.76,141.71,27.0565]
[1723770980357,0.50203566,141.76,141.7,7.0571]
[1723770980527,0.12549,141.78,141.72,20.0]
[1723770980731,20.50203566,141.78,141.71,20.0]
[1723770981025,0.50203566,141.77,141.71,20.0]
[1723770981222,0.50203566,141.77,141.7,17.642]
[1723770981424,7.0546,141.75,141.71,7.0566]
[1723770982348,7.0551,141.74,141.7,17.642]
[1723770982541,7.0547,141.75,141.7,17.642]
[1723770983552,7.0547,141.75,141.7,24.699]
[1723770984051,7.0552,141.74,141.7,17.642]
[1723770984737,20.0,141.78,141.7,44.699]
[1723770984738,26.8,141.77,141.7,44.699]
[1723770984941,7.0548,141.75,141.7,44.699]
[1723770985341,7.0548,141.75,141.7,24.699]
[1723770985559,7.0548,141.75,141.71,7.0566]
[1723770985852,7.0542,141.76,141.71,7.0566]
[1723770986266,33.1842,141.8,141.71,7.0566]
[1723770986267,26.8,141.79,141.73,7.0555]
[1723770986554,7.0535,141.78,141.73,7.0555]
[1723770986754,7.0537,141.77,141.73,7.0555]
[1723770987139,15.5533,141.8,141.74,7.055]
[1723770987338,13.1526,141.82,141.77,7.0535]
[1723770987559,13.1526,141.82,141.75,20.0]
[1723770987560,7.0518,141.81,141.75,20.0]
[1723770987855,7.0526,141.79,141.73,40.0]
[1723770988057,7.0533,141.78,141.73,40.0]
[1723770988274,26.8,141.79,141.73,37.6387]
[1723770988435,26.8,141.77,141.7,37.6425]
[1723770988771,26.8,141.75,141.7,17.6425]
[1723770988970,33.8547,141.75,141.7,24.6992]
[1723770989177,7.056,141.73,141.69,20.0]
[1723770989333,33.8557,141.73,141.68,7.9085662]
[1723770989537,7.0552,141.74,141.69,7.0576]
[1723770989873,22.8073,141.77,141.72,7.056]
[1723770990166,15.7533,141.77,141.7,17.6425]
[1723770990374,15.7533,141.77,141.69,20.0]
[1723770990375,42.5533,141.77,141.69,20.0]
[1723770990558,7.0547,141.75,141.69,27.0572]
[1723770990873,7.0547,141.75,141.69,7.0572]
[1723770991168,26.8,141.75,141.68,38.4948662]
[1723770991470,7.0576,141.69,141.68,0.8505662]
[1723770991772,26.8,141.7,141.68,0.8505662]
[1723770991984,33.66549,141.71,141.68,0.8505662]
[1723770992267,33.54,141.69,141.68,0.8505662]
[1723770992440,40.5976,141.69,141.68,0.8505662]
[1723770992643,63.55868,141.69,141.68,0.8505662]
[1723770992936,40.5996,141.65,141.61,10.0]
[1723770993137,7.0601,141.64,141.61,10.0]
[1723770993766,33.54,141.68,141.61,10.0]
[1723770993953,27.0586,141.67,141.61,10.0]
[1723770994158,33.54,141.68,141.61,10.0]
[1723770994159,7.0584,141.68,141.61,10.0]
[1723770994452,22.7101,141.69,141.62,40.0]
[1723770994674,22.7101,141.69,141.62,20.0]
[1723770994835,0.12549,141.67,141.61,27.6528]
[1723770995260,7.0591,141.66,141.61,27.6528]
[1723770995581,7.0591,141.66,141.61,10.0]
[1723770995582,0.25098,141.65,141.61,10.0]
[1723770995740,7.18659,141.63,141.61,10.0]
[1723770995931,0.12549,141.63,141.61,10.0]
[1723770996129,29.8262,141.62,141.61,10.0]
[1723770996335,7.0641,141.57,141.54,0.8505662]
[1723770996563,33.54,141.58,141.54,0.8505662]
[1723770996772,7.0631,141.58,141.54,0.8505662]
[1723770996929,0.12549,141.59,141.55,7.0646]
[1723770997133,7.18719,141.61,141.55,17.6603]
[1723770997664,29.8264,141.62,141.55,37.6603]
[1723770997959,29.8264,141.62,141.56,7.0636]
[1723770998179,29.8264,141.62,141.57,7.0635]
[1723770998487,7.0622,141.6,141.54,0.8505662]
[1723770998839,7.0627,141.59,141.54,7.9155662]
[1723771000053,33.54,141.61,141.55,7.0645]
[1723771000267,33.54,141.61,141.54,0.8505662]
[1723771000268,33.54,141.57,141.54,0.8505662]
[1723771000581,7.0641,141.56,141.5,24.5853662]
[1723771000781,7.0647,141.55,141.5,24.5853662]
[1723771001181,33.66549,141.57,141.48,7.068]
[1723771001503,6.51419,141.52,141.46,7.069]
[1723771001790,7.69422566,141.51,141.46,7.069]
[1723771001967,7.19219,141.51,141.46,7.069]
[1723771002168,7.0667,141.51,141.45,7.0695]
[1723771002381,13.4549,141.52,141.46,7.0689]
[1723771002681,33.79098,141.51,141.44,17.6752]
[1723771003062,40.85768,141.51,141.45,7.0695]
[1723771003268,7.56933566,141.5,141.44,24.7452]
[1723771003497,33.79098,141.51,141.44,24.7452]
[1723771003498,0.12549,141.51,141.45,20.0]
[1723771003683,7.0652,141.54,141.48,7.0681]
[1723771004052,7.0652,141.54,141.49,7.0675]
[1723771004388,7.0647,141.55,141.49,7.0675]
[1723771004684,16.4736,141.58,141.52,20.0]
[1723771004887,13.2569,141.6,141.53,37.663]
[1723771004888,6.1948,141.6,141.53,37.663]
[1723771005183,13.75903566,141.6,141.55,7.0645]
[1723771005385,6.1948,141.6,141.53,17.663]
[1723771005562,7.0627,141.59,141.53,17.663]
[1723771005974,0.50203566,141.58,141.53,17.663]
[1723771006171,6.1948,141.6,141.53,17.663]
[1723771006394,6.1948,141.6,141.51,20.0]
[1723771006395,40.23683566,141.6,141.5,17.6674]
[1723771006970,15.8399,141.63,141.54,20.0]
[1723771007211,15.8399,141.63,141.55,7.0644]
[1723771007378,7.062,141.61,141.55,7.0644]
[1723771007574,15.8399,141.63,141.56,57.6596]
[1723771007984,22.9009,141.63,141.58,7.063]
[1723771008195,15.8399,141.63,141.56,17.6596]
[1723771008397,7.0622,141.6,141.56,17.6596]
[1723771008591,15.8399,141.63,141.56,17.6596]
[1723771008919,15.8399,141.63,141.56,37.6596]
[1723771009083,22.9009,141.63,141.56,37.6596]
[1723771009286,6.6425,141.64,141.6,7.0619]
[1723771009487,7.0587,141.67,141.62,7.0611]
[1723771009722,29.0731,141.68,141.63,7.0606]
[1723771009919,7.0589,141.67,141.62,7.061]
[1723771010504,29.0731,141.68,141.63,7.0605]
[1723771011036,22.0149,141.68,141.64,7.0601]
[1723771011699,6.6425,141.68,141.64,7.0601]
[1723771011894,40.88238662,141.71,141.62,57.6521]
[1723771011895,7.34238662,141.71,141.65,20.0]
[1723771012124,6.4139,141.72,141.68,7.0577]
[1723771012322,7.0555,141.74,141.69,7.0575]
[1723771012497,7.0556,141.73,141.68,7.058]
[1723771012701,7.0556,141.73,141.69,27.0576]
[1723771012907,21.7207,141.77,141.72,7.0561]
[1723771013355,7.0542,141.76,141.7,17.642]
[1723771013678,7.0546,141.75,141.7,24.6987]
[1723771013889,28.7747,141.77,141.7,37.642]
[1723771014043,21.7207,141.77,141.71,7.0565]
[1723771014375,7.0545,141.76,141.71,7.0565]
[1723771015047,7.0545,141.76,141.66,35.2954]
[1723771015048,21.7207,141.77,141.67,37.6462]
[1723771015246,7.0562,141.72,141.67,24.7044]
[1723771015457,34.16752566,141.76,141.67,17.6462]
[1723771015847,7.0562,141.72,141.67,24.7047]
[1723771016667,7.0562,141.72,141.67,44.7047]
[1723771016988,0.12549,141.76,141.68,41.41148494]
[1723771017195,21.7207,141.77,141.68,41.41123437]
[1723771017362,21.7207,141.77,141.71,20.0]
[1723771017696,21.7207,141.77,141.71,37.6409]
[1723771018369,7.0542,141.76,141.71,44.6971]
[1723771018881,7.0527,141.79,141.74,7.0548]
[1723771019311,15.4452,141.81,141.75,37.6356]
[1723771019456,6.1335,141.85,141.77,20.0]
[1723771019661,7.052,141.81,141.76,7.054]
[1723771019875,21.5787,141.77,141.62,20.0]
[1723771020087,21.5787,141.77,141.67,20.0]
[1723771020284,7.0571,141.7,141.65,6.5548]
[1723771020572,7.0593,141.66,141.6,6.3164]
[1723771020985,33.54,141.66,141.57,35.474]
[1723771021292,33.54,141.66,141.57,20.0]
[1723771021614,7.0612,141.62,141.57,20.0]
[1723771021769,51.1886,141.66,141.57,40.0]
[1723771022111,7.0607,141.63,141.58,17.6566]
[1723771022407,0.50203566,141.62,141.57,20.0]
[1723771023386,7.0606,141.63,141.59,20.0]
[1723771023583,33.54,141.68,141.61,20.0]
[1723771024112,33.54,141.68,141.59,37.6556]
[1723771024697,33.54,141.7,141.65,20.0]
[1723771025023,33.54,141.72,141.63,20.0]
[1723771025225,33.54,141.7,141.6,45.25098]
[1723771025390,33.54,141.68,141.6,45.25098]
[1723771025725,7.0596,141.65,141.6,64.7168]
[1723771025895,7.0596,141.65,141.6,24.7168]
[1723771026228,7.56213566,141.64,141.6,17.6548]
[1723771026429,7.0607,141.63,141.58,7.0629]
[1723771026931,7.0611,141.62,141.57,24.7221]
[1723771027282,7.56363566,141.61,141.57,17.6586]
[1723771027612,7.56393566,141.61,141.56,7.064]
[1723771027826,7.56393566,141.61,141.53,40.0]
[1723771027827,33.54,141.62,141.55,7.0642]
[1723771027982,7.0621,141.6,141.55,7.0642]
[1723771028691,40.6011,141.62,141.57,7.0634]
[1723771029027,40.6011,141.62,141.56,24.7236]
[1723771029028,7.0619,141.61,141.56,24.7236]
[1723771029476,7.0625,141.6,141.56,17.6597]
[1723771030083,7.0622,141.6,141.55,47.0646]
[1723771030408,33.54,141.6,141.53,37.6634]
[1723771030830,7.0627,141.59,141.54,7.0647]
[1723771030985,7.56473566,141.59,141.54,7.0647]
[1723771032132,7.56473566,141.59,141.52,0.12549]
[1723771032133,7.0637,141.57,141.52,7.0656]
[1723771032453,40.6032,141.58,141.53,7.0654]
[1723771032624,0.50203566,141.64,141.54,20.0]
[1723771032625,33.54,141.62,141.54,20.0]
[1723771032817,7.0622,141.6,141.55,7.0645]
[1723771033125,7.0631,141.58,141.54,17.6621]
[1723771033318,7.0631,141.58,141.54,37.6621]
[1723771033519,7.0627,141.59,141.56,20.0]
[1723771034364,7.062,141.61,141.56,27.064]
[1723771034948,7.0612,141.62,141.57,7.0635]
[1723771035717,33.54,141.6,141.54,27.0651]
[1723771036053,33.54,141.62,141.55,7.0644]
[1723771036432,7.0622,141.6,141.56,20.0]
[1723771036633,7.0622,141.6,141.55,7.0644]
[1723771036634,33.54,141.62,141.57,20.0]
[1723771036848,7.0645,141.56,141.49,20.0]
[1723771037053,33.54,141.55,141.49,20.0]
[1723771037534,7.0651,141.54,141.49,20.0]
[1723771037855,7.0656,141.53,141.49,20.0]
[1723771038424,7.0656,141.53,141.49,27.0676]
[1723771038619,7.0666,141.51,141.45,57.6736]
[1723771038849,7.0662,141.52,141.48,20.0]
[1723771039051,33.54,141.53,141.48,20.0]
[1723771039350,7.0662,141.52,141.48,20.0]
[1723771039862,7.0662,141.52,141.48,27.068]
[1723771041233,7.0662,141.52,141.48,20.0]
[1723771042157,7.0666,141.51,141.46,27.0689]
[1723771043135,7.0675,141.5,141.46,20.0]
[1723771043336,33.54,141.51,141.45,17.6736]
[1723771043746,33.54,141.51,141.45,24.7432]
[1723771043943,33.54,141.51,141.45,17.6736]
[1723771043944,7.0676,141.49,141.45,17.6736]
[1723771044149,7.0697,141.45,141.41,44.7496]
[1723771044458,7.0692,141.46,141.43,20.0]
[1723771044766,7.0687,141.47,141.43,20.0]
[1723771044930,7.0691,141.46,141.42,27.071]
[1723771045134,33.54,141.49,141.42,7.0709]
[1723771045438,7.069,141.47,141.42,7.0709]
[1723771045649,51.2096,141.49,141.42,20.0]
[1723771045849,7.0692,141.46,141.42,20.0]
[1723771047571,33.54,141.47,141.42,20.0]
[1723771047572,7.0687,141.47,141.42,27.0711]
[1723771047864,7.0677,141.49,141.45,20.0]
[1723771048769,33.54,141.53,141.48,20.0]
[1723771049265,7.0671,141.5,141.46,37.672]
[1723771049947,7.0671,141.5,141.48,20.0]
[1723771050837,33.54,141.51,141.45,21.6381]
[1723771051156,33.54,141.51,141.43,20.0]
[1723771051347,7.0696,141.45,141.41,26.4791]
[1723771051932,7.0676,141.49,141.45,20.0]
[1723771052254,51.21,141.49,141.43,20.0]
[1723771052451,51.21,141.49,141.41,26.4791]
[1723771052651,7.0702,141.44,141.41,26.4791]
[1723771052852,51.21,141.49,141.41,26.4791]
[1723771053043,7.0698,141.45,141.41,26.4791]
[1723771053451,7.0698,141.45,141.43,20.0]
[1723771053770,7.0692,141.46,141.43,20.0]
[1723771054263,51.21,141.49,141.43,20.0]
[1723771054668,7.0687,141.47,141.43,20.0]
[1723771054865,7.0682,141.48,141.43,27.0705]
[1723771055161,7.0677,141.49,141.45,20.0]
[1723771055574,17.666,141.52,141.45,20.0]
[1723771055938,7.0677,141.49,141.47,20.0]
[1723771056472,33.54,141.53,141.47,20.0]
[1723771056644,51.2017,141.55,141.47,20.0]
[1723771056843,7.0662,141.52,141.49,20.0]
[1723771057660,7.0657,141.53,141.49,20.0]
[1723771059065,7.0662,141.52,141.49,20.0]
[1723771059263,7.0662,141.52,141.47,37.6709]
[1723771059567,7.0666,141.51,141.48,0.12549]
[1723771059934,7.0676,141.49,141.45,20.0]
[1723771060134,7.0681,141.48,141.45,20.0]
[1723771060340,33.54,141.53,141.41,6.4791]
[1723771060341,33.54,141.49,141.41,71.2285]
[1723771060577,7.0697,141.45,141.41,64.1574]
[1723771060943,7.0697,141.45,141.41,44.1574]
[1723771061367,33.54,141.47,141.41,26.4791]
[1723771061557,7.07,141.45,141.41,26.4791]
[1723771062796,7.07,141.45,141.41,53.5507]
[1723771063097,7.0692,141.46,141.41,53.5507]
[1723771063318,7.0697,141.45,141.41,46.4791]
[1723771063598,7.0692,141.46,141.43,20.0]
[1723771063762,33.54,141.49,141.43,20.0]
[1723771063962,33.54,141.49,141.43,27.0704]
[1723771064387,7.0682,141.48,141.45,20.0]
[1723771064688,7.0681,141.48,141.45,20.0]
[1723771064896,7.0677,141.49,141.45,20.0]
[1723771065274,7.0677,141.49,141.47,40.0]
[1723771065465,7.0671,141.5,141.47,40.0]
[1723771066188,7.0671,141.5,141.47,20.0]
[1723771066484,33.54,141.55,141.49,20.0]
[1723771067204,6.2798,141.57,141.5,0.12549]
[1723771067205,39.8198,141.57,141.5,0.12549]
[1723771067490,7.0656,141.53,141.5,0.12549]
[1723771068486,7.0652,141.54,141.5,0.12549]
[1723771069063,7.0656,141.53,141.5,0.12549]
[1723771070016,7.0656,141.53,141.51,20.0]
[1723771070429,33.54,141.53,141.44,40.0]
[1723771070591,33.54,141.53,141.42,15.2811]
[1723771070592,7.0702,141.44,141.42,35.2811]
[1723771070798,7.0696,141.45,141.42,20.0]
[1723771071814,7.0692,141.46,141.42,20.0]
[1723771072098,7.0688,141.47,141.42,27.0708]
[1723771072290,7.0688,141.47,141.4,18.5302662]
[1723771072291,39.92,141.47,141.4,0.8505662]
[1723771072593,7.0702,141.44,141.4,20.8505662]
[1723771072801,7.0702,141.44,141.4,27.9225662]
[1723771072999,7.0697,141.45,141.4,27.9225662]
[1723771073202,7.0692,141.46,141.43,20.0]
[1723771073592,33.54,141.49,141.43,20.0]
[1723771073593,7.0687,141.47,141.43,20.0]
[1723771074815,7.068,141.49,141.45,20.0]
[1723771075115,7.0685,141.48,141.45,20.0]
[1723771075617,33.54,141.51,141.45,20.0]
[1723771075831,33.54,141.49,141.43,20.0]
[1723771076000,33.54,141.49,141.4,18.5304662]
[1723771076001,33.54,141.49,141.41,20.0]
[1723771076192,33.54,141.47,141.43,20.0]
[1723771076706,33.54,141.49,141.43,20.0]
[1723771077223,7.0692,141.46,141.43,20.0]
[1723771077418,33.54,141.49,141.43,20.0]
[1723771077419,7.0687,141.47,141.45,20.0]
[1723771077727,33.54,141.49,141.46,20.0]
[1723771077728,7.0677,141.49,141.46,20.0]
[1723771077928,7.0681,141.48,141.45,20.0]
[1723771078615,33.54,141.51,141.44,20.0]
[1723771078813,33.54,141.51,141.44,27.07]
[1723771079016,7.0681,141.48,141.44,27.07]
[1723771079216,33.54,141.51,141.46,20.0]
[1723771079418,7.0671,141.51,141.46,27.069]
[1723771079713,7.0668,141.51,141.48,20.0]
[1723771080334,51.2023,141.55,141.48,40.0]
[1723771080631,7.0657,141.53,141.49,0.12549]
[1723771080852,7.0652,141.54,141.5,20.0]
[1723771081042,7.0657,141.53,141.5,20.0]
[1723771081245,7.0657,141.53,141.49,0.12549]
[1723771081833,33.54,141.57,141.5,47.0671]
[1723771082022,7.0651,141.54,141.5,20.0]
[1723771082423,7.0649,141.55,141.51,20.0]
[1723771082731,7.0649,141.55,141.5,27.067]
[1723771082938,7.0651,141.54,141.51,0.12549]
[1723771083422,7.0647,141.55,141.52,20.0]
[1723771084137,7.0651,141.54,141.51,0.12549]
[1723771085127,7.0658,141.53,141.5,20.0]
[1723771085330,7.0652,141.54,141.5,40.0]
[1723771086430,7.0652,141.54,141.51,0.12549]
[1723771087216,33.54,141.57,141.48,20.0]
[1723771087418,7.0676,141.49,141.46,42.4888]
[1723771087624,33.54,141.53,141.46,42.4888]
[1723771087836,7.0674,141.5,141.46,22.4888]
[1723771088384,7.0685,141.48,141.44,37.6747]
[1723771088532,7.0677,141.49,141.46,40.0]
[1723771089042,33.54,141.49,141.42,43.1004]
[1723771089365,7.0694,141.46,141.42,43.1004]
[1723771090232,7.0687,141.47,141.42,50.1714]
[1723771090428,7.0687,141.47,141.43,7.0705]
[1723771090747,7.0682,141.48,141.45,20.0]
[1723771090924,7.0682,141.48,141.43,27.0705]
[1723771091118,7.0686,141.47,141.43,20.0]
[1723771091318,33.54,141.49,141.41,44.7499]
[1723771091544,7.0696,141.45,141.41,37.6785]
[1723771091727,7.0696,141.45,141.41,44.75]
[1723771091934,7.0696,141.45,141.41,64.75]
[1723771092334,7.071,141.43,141.4,0.8505662]
[1723771092531,7.0702,141.44,141.4,0.8505662]
[1723771093248,7.0702,141.44,141.42,20.0]
[1723771093436,51.2116,141.47,141.4,7.9225662]
[1723771093437,7.0697,141.45,141.4,7.9225662]
[1723771093619,7.0697,141.45,141.41,20.12549]
[1723771093971,7.0701,141.44,141.4,7.9225662]
[1723771094651,7.0701,141.44,141.4,0.8505662]
[1723771094844,7.0706,141.43,141.4,0.8505662]
[1723771096029,7.0701,141.44,141.4,0.8505662]
[1723771096442,7.0697,141.45,141.41,20.0]
[1723771096954,40.6087,141.47,141.43,20.0]
[1723771097162,7.0682,141.48,141.44,0.12549]
[1723771097327,7.0691,141.46,141.42,17.80269]
[1723771097527,7.0686,141.47,141.42,24.7481]
[1723771098633,7.0686,141.47,141.41,20.0]
[1723771098634,7.0692,141.46,141.41,7.0715]
[1723771098951,33.54,141.47,141.4,24.1446662]
[1723771099138,7.07,141.45,141.4,24.1446662]
[1723771099335,33.54,141.47,141.4,17.0726662]
[1723771099651,33.54,141.45,141.4,0.8505662]
[1723771100057,7.0707,141.43,141.4,0.8505662]
[1723771100222,7.0702,141.44,141.4,20.8505662]
[1723771100426,33.54,141.47,141.41,20.0]
[1723771100645,7.07,141.45,141.4,27.9225662]
[1723771101565,7.07,141.45,141.4,7.9225662]
[1723771101731,0.50203566,141.45,141.4,0.8505662]
[1723771102160,7.0706,141.43,141.4,0.8505662]
[1723771103937,7.0702,141.44,141.4,0.8505662]
[1723771104132,7.0702,141.44,141.4,27.9226662]
[1723771104363,33.54,141.49,141.42,20.0]
[1723771104581,7.33351319,141.51,141.46,27.0687]
[1723771104874,40.1284,141.53,141.46,20.0]
[1723771104875,7.0676,141.49,141.46,20.0]
[1723771105064,33.54,141.51,141.43,45.25098]
[1723771105365,40.63043566,141.53,141.42,55.4496]
[1723771105366,7.0688,141.47,141.42,42.5202]
[1723771105881,7.0691,141.46,141.42,42.5202]
[1723771106168,7.0687,141.47,141.42,42.5202]
[1723771106458,7.0687,141.47,141.43,7.0705]
[1723771106660,7.0682,141.48,141.44,20.0]
[1723771106829,7.33160056,141.52,141.46,20.0]
[1723771107033,7.0672,141.5,141.46,27.069]
[1723771107264,40.606,141.53,141.48,27.0679]
[1723771107498,7.0661,141.52,141.47,7.0684]
[1723771107994,7.0655,141.54,141.5,20.0]
[1723771108704,7.0655,141.54,141.5,27.067]
[1723771108859,39.5968,141.57,141.5,27.067]
[1723771108860,7.0647,141.55,141.5,27.067]
[1723771109059,7.0647,141.55,141.51,20.0]
[1723771110491,33.54,141.52,141.46,20.0]
[1723771110690,7.068,141.49,141.45,17.6736]
[1723771110997,7.0681,141.48,141.44,7.0699]
[1723771111199,7.0687,141.47,141.42,37.6771]
[1723771112319,33.54,141.48,141.42,17.6771]
[1723771112613,33.54,141.46,141.4,0.8505662]
[1723771112761,33.54,141.44,141.4,0.8505662]
[1723771112966,7.0707,141.43,141.4,0.8505662]
[1723771113201,33.54,141.44,141.4,0.8505662]
[1723771113202,40.6102,141.44,141.41,20.0]
[1723771113411,7.0697,141.45,141.41,20.0]
[1723771113586,33.54,141.46,141.4,0.8505662]
[1723771113587,7.0703,141.44,141.4,0.8505662]
[1723771113770,7.0703,141.44,141.4,20.8505662]
[1723771113969,7.0703,141.44,141.4,27.9226662]
[1723771114982,7.0703,141.44,141.4,20.8505662]
[1723771115368,7.0697,141.45,141.41,20.0]
[1723771115568,7.0689,141.47,141.42,27.0709]
[1723771115775,33.54,141.44,141.4,20.8505662]
[1723771115976,7.071,141.43,141.4,20.8505662]
[1723771116885,40.6102,141.44,141.4,20.8505662]